fUSD/lending_fUSD_20251024
["ID","MTS","AMOUNT","RATE_DAILY","PERIOD"]
[392277782,1761300649033,-705.53,0.00041095,30]
[392277783,1761300649043,-300.0,0.00041095,2]
[392277784,1761300649054,-500.0,0.00041095,30]
[392277785,1761300649063,-507.64026744,0.00041095,30]
[392277786,1761300649072,-500.0,0.00041095,30]
[392277787,1761300649081,-557.28669634,0.00041095,30]
[392277788,1761300649093,-500.0,0.00041095,30]
[392277789,1761300649103,-500.0,0.00041095,30]
[392277790,1761300649113,-500.0,0.00041095,30]
[392277791,1761300649123,-500.0,0.00041095,30]
[392277792,1761300649134,-500.0,0.00041095,30]
[392277793,1761300649148,-712.13,0.00041095,30]
[392277794,1761300649160,-507.56791503,0.00041095,30]
[392277795,1761300649169,-500.0,0.00041095,30]
[392277796,1761300649180,-500.0,0.00041095,30]
[392277797,1761300649191,-500.0,0.00041095,30]
[392277798,1761300649203,-698.52,0.00041095,30]
[392277799,1761300649214,-500.0,0.00041095,30]
[392277800,1761300649225,-500.0,0.00041095,30]
[392277801,1761300649234,-500.0,0.00041095,30]
[392277802,1761300649244,-500.0,0.00041095,30]
[392277803,1761300649254,-712.26,0.00041095,30]
[392277804,1761300649266,-500.0,0.00041095,30]
[392277805,1761300649275,-508.03039953,0.00041095,30]
[392277806,1761300649286,-500.0,0.00041095,30]
[392277807,1761300649297,-500.0,0.00041095,30]
[392277808,1761300649307,-151.0,0.00041095,120]
[392277809,1761300649319,-151.0,0.00041095,120]
[392277810,1761300649332,-151.0,0.00041095,120]
[392277811,1761300649340,-500.0,0.00041095,30]
[392277812,1761300649350,-500.0,0.00041095,30]
[392277813,1761300649361,-500.0,0.00041095,30]
[392277814,1761300649372,-500.0,0.00041095,30]
[392277815,1761300649382,-500.0,0.00041095,30]
[392277816,1761300649391,-500.0,0.00041095,30]
[392277817,1761300649402,-500.0,0.00041095,30]
[392277818,1761300649412,-500.0,0.00041095,30]
[392277819,1761300649422,-500.0,0.00041095,30]
[392277820,1761300649432,-500.0,0.00041095,30]
[392277821,1761300649445,-500.0,0.00041095,30]
[392277822,1761300649455,-543.13,0.00041095,30]
[392277823,1761300649464,-500.0,0.00041095,30]
[392277824,1761300649474,-422.02477038,0.00041095,30]
[392277825,1761300649483,-500.0,0.00041095,30]
[392277826,1761300649494,-500.0,0.00041095,30]
[392277827,1761300649505,-500.0,0.00041095,30]
[392277828,1761300649515,-756.91,0.00041095,30]
[392277829,1761300649524,-765.55,0.00041095,30]
[392277830,1761300649537,-500.0,0.00041095,30]
[392277831,1761300649547,-500.0,0.00041095,30]
[392277832,1761300649558,-500.0,0.00041095,30]
[392277833,1761300649569,-500.0,0.00041095,30]
[392277834,1761300649579,-500.0,0.00041095,30]
[392277835,1761300649589,-711.07,0.00041095,30]
[392277836,1761300649598,-500.0,0.00041095,30]
[392277837,1761300649608,-500.0,0.00041095,30]
[392277838,1761300649619,-500.0,0.00041095,30]
[392277839,1761300649630,-18.2643909,0.00041095,30]
[392277840,1761300650673,-128.5236823,0.00038971,2]
[392277841,1761300650817,-75.86723328,0.00038971,2]
[392277845,1761300651104,-340.19512394,0.00038971,2]
[392277846,1761300651115,-3155.79500845,0.00038971,2]
[392277847,1761300651128,-414.35,0.00039863,2]
[392277848,1761300651137,-1008.15,0.00040329,2]
[392277849,1761300651147,-151.0,0.00041085,30]
[392277850,1761300651156,-160.240855,0.00041085,120]
[392277851,1761300651165,-151.0,0.00041085,30]
[392277852,1761300651174,-174.350087,0.00041085,120]
[392277853,1761300651182,-481.7356091,0.00041095,30]
[392277854,1761300651191,-500.0,0.00041095,30]
[392277855,1761300651200,-500.0,0.00041095,30]
[392277856,1761300651209,-689.38,0.00041095,30]
[392277857,1761300651218,-500.0,0.00041095,30]
[392277858,1761300651226,-151.0,0.00041095,120]
[392277859,1761300651236,-24.89252045,0.00041095,30]
[392277860,1761300651247,-475.10747955,0.00041095,30]
[392277861,1761300651256,-500.0,0.00041095,30]
[392277862,1761300651265,-306.9851082,0.00041095,30]
[392277863,1761300651276,-193.0148918,0.00041095,30]
[392277864,1761300651285,-500.0,0.00041095,30]
[392277865,1761300651293,-500.0,0.00041095,30]
[392277866,1761300651302,-722.18,0.00041095,30]
[392277867,1761300651311,-295.75401192,0.00041095,30]
[392277868,1761300651330,-204.24598808,0.00041095,30]
[392277869,1761300651339,-500.0,0.00041095,30]
[392277870,1761300651349,-771.18,0.00041095,30]
[392277872,1761300651360,-500.0,0.00041095,30]
[392277873,1761300651371,-785.89,0.00041095,30]
[392277874,1761300651381,-500.0,0.00041095,30]
[392277875,1761300651392,-500.0,0.00041095,30]
[392277877,1761300651403,-500.0,0.00041095,30]
[392277878,1761300651413,-389.09801168,0.00041095,30]
[392277879,1761300651425,-110.90198832,0.00041095,30]
[392277881,1761300651435,-500.0,0.00041095,30]
[392277882,1761300651444,-500.0,0.00041095,30]
[392277884,1761300651454,-1035.98,0.00041095,30]
[392277885,1761300651464,-682.9,0.00041095,30]
[392277886,1761300651473,-503.77237372,0.00041095,30]
[392277887,1761300651483,-187.05539945,0.00041095,30]
[392278052,1761301048606,2000.0,0.00017,60]
[392278054,1761301073003,2012.14,0.000175,2]
[392278056,1761301085938,195.0,0.00026178,120]
[392278060,1761301145882,195.0,0.00026178,120]
[392278098,1761301508023,195.0,0.00026178,120]
[392278099,1761301508911,86739.75,0.00015,2]
[392278100,1761301508942,5960.19647441,0.00015,2]
[392278101,1761301508968,6210.19647441,0.00015,2]
[392278102,1761301508994,6210.19647441,0.00015,2]
[392278103,1761301509020,6210.19647441,0.00015,2]
[392278104,1761301509045,6210.19647441,0.00015,2]
[392278105,1761301509071,6210.19647441,0.00015,2]
[392278106,1761301509096,6210.19647441,0.00015,2]
[392278107,1761301509120,6210.19647441,0.00015,2]
[392278108,1761301509149,6210.19647441,0.00015,2]
[392278109,1761301509174,6210.19647441,0.00015,2]
[392278110,1761301509207,26571.14682293,0.00015,2]
[392278156,1761301566839,905.67305873,0.00015,2]
[392278201,1761301616602,5000.0,0.000162,5]
[392278215,1761301638559,-239.99640354,0.000153,2]
[392278216,1761301640667,-202.57951242,0.000153,2]
[392278217,1761301642492,-393.9762775,0.000153,2]
[392278231,1761301645919,-170.75940147,0.000153,2]
[392278238,1761301647451,-229.2345595,0.000153,2]
[392278239,1761301649752,-250.22304369,0.000153,2]
[392278253,1761301674802,32112.84099106,0.00015,2]
[392278261,1761301698523,-30.87080188,0.000153,2]
[392278262,1761301698545,-241.2055635,0.0001683,2]
[392278279,1761301722161,161.40455535,0.00012,2]
[392278282,1761301768157,-48.04785667,0.0001683,2]
[392278283,1761301768178,-400.21700466,0.00023347,2]
[392278284,1761301768198,-167.94,0.00024195,2]
[392278285,1761301768218,-500.0,0.00024932,2]
[392278286,1761301768238,-250.0,0.00025956,2]
[392278287,1761301768259,-167.94,0.00026339,7]
[392278288,1761301768278,-237.6,0.00026516,2]
[392278289,1761301768300,-183.54,0.0002698,2]
[392278290,1761301768322,-308.0,0.00027424,2]
[392278291,1761301768344,-2450.92634667,0.00027425,120]
[392278310,1761301831822,-286.584,0.00026876,2]
[392278311,1761301831832,-150.0,0.00026876,2]
[392278312,1761301831842,-195.0,0.00027425,120]
[392278313,1761301831852,-250.0,0.00027425,2]
[392278314,1761301831861,-195.0,0.00027425,120]
[392278315,1761301831871,-74.95122432,0.00027425,2]
[392278316,1761301831884,-175.04877568,0.00027425,2]
[392278317,1761301831895,-300.0,0.00027425,120]
[392278318,1761301831904,-278.30109998,0.00027425,120]
[392278319,1761301831916,-21.69890002,0.00027425,120]
[392278320,1761301831925,-1000.0,0.00027999,2]
[392278321,1761301831939,-1200.0,0.00027999,2]
[392278322,1761301831948,-192.0,0.00027999,2]
[392278323,1761301831957,-200.0,0.00027999,2]
[392278324,1761301831967,-64900.45418388,0.00028,2]
[392278325,1761301831976,-1830.3336,0.00028521,10]
[392278326,1761301831986,-898.0,0.00028545,2]
[392278327,1761301831995,-1050.0,0.00028602,2]
[392278328,1761301832005,-1153.0,0.00028659,2]
[392278329,1761301832015,-247.0,0.00028716,2]
[392278330,1761301832025,-862.0,0.00028773,2]
[392278332,1761301832035,-323.0,0.00028814,2]
[392278333,1761301832044,-1031.0,0.0002883,2]
[392278334,1761301832053,-296.0,0.00028871,2]
[392278335,1761301832062,-869.0,0.00028887,2]
[392278336,1761301832072,-1641.0,0.00028944,2]
[392278337,1761301832081,-840.0,0.00029001,2]
[392278338,1761301832090,-666.0,0.00029058,2]
[392278339,1761301832099,-812.0,0.00029115,2]
[392278340,1761301832110,-224.0,0.00029158,2]
[392278341,1761301832119,-612.0,0.00029172,2]
[392278342,1761301832128,-400.0,0.00029216,2]
[392278343,1761301832138,-1286.0,0.00029229,2]
[392278345,1761301832148,-412.0,0.00029275,2]
[392278347,1761301832158,-253.0,0.00029286,2]
[392278349,1761301832167,-305.0,0.00029333,2]
[392278351,1761301832176,-494.0,0.00029343,2]
[392278352,1761301832185,-984.49,0.00029401,2]
[392278353,1761301832194,-250.0,0.00029563,2]
[392278354,1761301832204,-1000.0,0.00029763,2]
[392278355,1761301832213,-77650.76890799,0.000299,2]
[392278356,1761301832222,-3372.41777504,0.0003,2]
[392278357,1761301832232,-1787.99279199,0.0003,2]
[392278358,1761301832241,-604.58267767,0.0003,2]
[392278359,1761301832251,-2073.59,0.0003,30]
[392278360,1761301832260,-1009.0368506,0.0003013,7]
[392278361,1761301832270,-2569.84699102,0.0003084,2]
[392278362,1761301832280,-4481.24527666,0.00030888,60]
[392278363,1761301832290,-6898.83339059,0.00032,2]
[392278364,1761301832299,-5754.07855915,0.00032,2]
[392278365,1761301832309,-282.62636901,0.00032192,2]
[392278366,1761301832319,-7142.45,0.00032232,2]
[392278367,1761301832328,-2380.83278861,0.00032232,2]
[392278368,1761301832339,-274.73006917,0.00032232,2]
[392278369,1761301832351,-2060.14714222,0.00032232,2]
[392278370,1761301832360,-3555.54575348,0.00032232,30]
[392278371,1761301832371,-13414.22424652,0.00032232,30]
[392278372,1761301832380,-3452.86494044,0.00032232,2]
[392278373,1761301832391,-874.67,0.00032232,2]
[392278378,1761301837736,-570.9886789,0.00027957,2]
[392278379,1761301837746,-570.9886789,0.00031081,2]
[392278380,1761301837756,-524.5226422,0.00032232,2]
[392278381,1761301837767,-310.85160823,0.00032232,2]
[392278382,1761301837788,-1619.27080913,0.00032232,2]
[392278383,1761301837800,-878.76454855,0.000323,2]
[392278384,1761301837812,-12366.06,0.00032355,2]
[392278385,1761301837824,-272.69845103,0.00032733,7]
[392278386,1761301837842,-772.37664191,0.00032733,7]
[392278387,1761301837851,-4388.87342035,0.000328,2]
[392278388,1761301837863,-360.90791984,0.000328,2]
[392278390,1761301837873,-0.88364635,0.00032877,30]
[392278391,1761301837894,-152.11635365,0.00032877,30]
[392278392,1761301837904,-153.0,0.00032877,30]
[392278393,1761301837914,-132.40526422,0.00032877,30]
[392278394,1761301837926,-20.59473578,0.00032877,30]
[392278395,1761301837940,-153.0,0.00032877,30]
[392278396,1761301837950,-153.0,0.00032877,30]
[392278397,1761301837960,-153.0,0.00032877,30]
[392278398,1761301837970,-153.0,0.00032877,30]
[392278399,1761301837980,-151.0,0.00032877,120]
[392278400,1761301837990,-1555.49588437,0.00033,2]
[392278401,1761301838000,-1532.92146091,0.00033,2]
[392278402,1761301838009,-17723.77429322,0.00033,2]
[392278404,1761301838020,-151.05377952,0.00033,2]
[392278405,1761301838034,-1000.0,0.00033483,2]
[392278406,1761301838044,-1191.7953689,0.000335,2]
[392278407,1761301838055,-152.36,0.00033994,60]
[392278408,1761301838065,-152.36,0.00033995,60]
[392278409,1761301838074,-152.36,0.00033995,60]
[392278410,1761301838084,-976.96,0.00034,2]
[392278411,1761301838095,-200.0,0.00034,2]
[392278412,1761301838105,-500.0,0.00034041,5]
[392278413,1761301838117,-500.0,0.00034041,5]
[392278414,1761301838127,-500.0,0.00034041,5]
[392278415,1761301838138,-500.58063668,0.00034041,5]
[392278416,1761301838147,-1424.84,0.00034139,2]
[392278417,1761301838157,-570.9886789,0.00034204,2]
[392278418,1761301838167,-180.0,0.00034421,12]
[392278419,1761301838177,-5000.0,0.0003445,2]
[392278420,1761301838187,-151.1,0.00034454,120]
[392278421,1761301838197,-504.62794636,0.00034589,5]
[392278422,1761301838208,-1000.0,0.00034589,5]
[392278423,1761301838219,-392.52,0.0003465,2]
[392278424,1761301838231,-1280.90721536,0.00034653,2]
[392278425,1761301839705,-150.0,0.000335,3]
[392278426,1761301839716,-1934.32278464,0.00034653,2]
[392278427,1761301839726,-508.0,0.00034859,120]
[392278428,1761301839737,-808.97,0.00034878,2]
[392278429,1761301839747,-6259.23333469,0.00034888,2]
[392278430,1761301839758,-4621.47916256,0.00034888,2]
[392278431,1761301839839,-348.19424838,0.00034888,2]
[392278432,1761301839851,-858.47467712,0.00034888,2]
[392278433,1761301839863,-455.54,0.00034888,2]
[392278434,1761301839879,-3904.36108811,0.00034888,2]
[392278435,1761301840218,-1.6e-07,0.00034888,2]
[392278436,1761301840239,-300.0,0.00034888,2]
[392278437,1761301840259,-1374.3405218,0.00034888,2]
[392278438,1761301840268,-1171.01824646,0.00034888,2]
[392278439,1761301840278,-151.0,0.00034967,2]
[392278440,1761301840289,-151.0,0.00034967,2]
[392278441,1761301840298,-151.0,0.00034967,2]
[392278442,1761301840307,-151.0,0.00034967,2]
[392278443,1761301840316,-151.0,0.00034967,2]
[392278444,1761301840329,-151.0,0.00034967,2]
[392278445,1761301840340,-151.0,0.00034967,2]
[392278446,1761301840351,-151.0,0.00034967,2]
[392278447,1761301840361,-151.0,0.00034967,2]
[392278448,1761301840370,-151.0,0.00034967,2]
[392278449,1761301840379,-151.0,0.00034967,2]
[392278450,1761301840388,-151.0,0.00034967,2]
[392278451,1761301840398,-291.79566579,0.00034967,2]
[392278452,1761301840408,-151.0,0.00034967,2]
[392278453,1761301840417,-151.0,0.00034967,2]
[392278454,1761301840426,-151.0,0.00034967,2]
[392278455,1761301840436,-151.0,0.00034967,2]
[392278456,1761301840446,-151.0,0.00034967,2]
[392278457,1761301840456,-151.0,0.00034967,2]
[392278458,1761301840466,-151.0,0.00034967,2]
[392278459,1761301840477,-151.0,0.00034967,2]
[392278460,1761301840487,-151.0,0.00034967,2]
[392278461,1761301840496,-151.0,0.00034967,2]
[392278462,1761301840505,-151.0,0.00034967,2]
[392278463,1761301840515,-151.0,0.00034967,2]
[392278464,1761301840525,-151.0,0.00034967,2]
[392278465,1761301840535,-151.0,0.00034967,2]
[392278466,1761301840545,-151.0,0.00034967,2]
[392278467,1761301840554,-151.0,0.00034967,2]
[392278468,1761301840565,-151.0,0.00034967,2]
[392278469,1761301840576,-151.0,0.00034967,2]
[392278470,1761301840586,-151.0,0.00034967,2]
[392278471,1761301840596,-151.0,0.00034967,2]
[392278472,1761301840606,-808.97,0.00034969,2]
[392278473,1761301840616,-151.0,0.00034976,14]
[392278474,1761301840625,-81084.200348,0.00034978,2]
[392278475,1761301840635,-808.97,0.00034978,2]
[392278476,1761301840644,-808.97,0.00034978,2]
[392278477,1761301840653,-808.97,0.00034978,2]
[392278478,1761301840663,-151.0,0.00034985,14]
[392278479,1761301840673,-329.907,0.00034988,40]
[392278480,1761301840682,-500.0,0.00034988,30]
[392278481,1761301840691,-500.0,0.00034988,30]
[392278482,1761301840702,-500.0,0.00034988,2]
[392278483,1761301840712,-500.0,0.00034988,2]
[392278484,1761301840721,-300.0,0.00034988,2]
[392278485,1761301840730,-308598.52,0.00034988,2]
[392278486,1761301840741,-379.24,0.00034988,2]
[392278487,1761301840751,-506.05,0.00034988,2]
[392278488,1761301840760,-210.58588214,0.00034988,2]
[392278489,1761301840769,-320.5756937,0.00035,5]
[392278490,1761301840778,-602.41010152,0.00035137,5]
[392278491,1761301840788,-354.57945895,0.00035267,2]
[392278492,1761301840797,-508.0,0.00035316,2]
[392278493,1761301840807,-364.47031318,0.00035331,7]
[392278494,1761301840816,-1000.0,0.00035338,2]
[392278495,1761301840825,-1000.0,0.00035364,2]
[392278496,1761301840835,-299.909789,0.000354,2]
[392278497,1761301840845,-20271.050087,0.00035587,2]
[392278498,1761301840854,-18121.62303274,0.00035597,2]
[392278499,1761301840863,-1000.0,0.00035638,2]
[392278500,1761301840872,-840.0,0.00035867,2]
[392278501,1761301840881,-1000.0,0.00035912,2]
[392278502,1761301840890,-168.0,0.00035993,2]
[392278503,1761301840899,-8903.10192402,0.00036,5]
[392278504,1761301840908,-14307.45031591,0.00036,30]
[392278505,1761301840918,-49511.80137473,0.00036,2]
[392278506,1761301840927,-50100.98190399,0.00036,6]
[392278507,1761301840940,-10686.98261563,0.00036,2]
[392278508,1761301840950,-840.0,0.00036041,2]
[392278509,1761301840959,-840.0,0.00036062,2]
[392278510,1761301840968,-840.0,0.00036092,120]
[392278511,1761301840978,-840.0,0.00036148,2]
[392278512,1761301840988,-168.0,0.00036167,2]
[392278513,1761301840997,-20271.050087,0.00036176,2]
[392278514,1761301841006,-1000.0,0.00036186,2]
[392278515,1761301841016,-1282.91,0.00036191,2]
[392278516,1761301841025,-1171.01824645,0.0003623,2]
[392278517,1761301841034,-506.05,0.00036301,2]
[392278518,1761301841044,-18121.62303274,0.00036306,2]
[392278519,1761301841054,-168.0,0.00036315,2]
[392278520,1761301841063,-1074.0,0.00036426,120]
[392278521,1761301841072,-1000.0,0.0003646,2]
[392278522,1761301841081,-1073.0,0.00036462,2]
[392278523,1761301841090,-466.24016522,0.00036556,5]
[392278524,1761301841100,-840.0,0.0003656,2]
[392278525,1761301841110,-1221.3279879,0.00036634,2]
[392278526,1761301841119,-300.0,0.000367,13]
[392278527,1761301841129,-150.84,0.00036724,2]
[392278528,1761301841138,-161.53545055,0.00036724,2]
[392278529,1761301841148,-152.0,0.00036724,3]
[392278530,1761301841157,-151.0,0.00036731,14]
[392278531,1761301841167,-500.0,0.00036733,2]
[392278532,1761301841176,-1000.0,0.00036734,2]
[392278533,1761301841186,-500.0,0.00036734,2]
[392278534,1761301841195,-500.0,0.00036734,2]
[392278535,1761301841205,-500.0,0.00036734,2]
[392278536,1761301841215,-500.0,0.00036734,2]
[392278537,1761301841290,-500.0,0.00036734,2]
[392278538,1761301841299,-151.0,0.00036734,30]
[392278539,1761301841308,-2471.047006,0.00036734,30]
[392278540,1761301841317,-151.0,0.00036734,30]
[392278541,1761301841327,-2471.047006,0.00036734,30]
[392278542,1761301841336,-151.0,0.00036734,30]
[392278543,1761301841345,-2471.047006,0.00036734,30]
[392278544,1761301841354,-151.0,0.00036734,30]
[392278545,1761301841363,-2471.047006,0.00036734,30]
[392278546,1761301841373,-1259582.76120088,0.00036734,2]
[392278547,1761301841384,-15127.31174997,0.00036734,3]
[392278548,1761301841395,-11254.43767157,0.00036734,2]
[392278549,1761301841406,-58412.5575387,0.00036734,2]
[392278550,1761301841415,-495.67080496,0.00036734,3]
[392278551,1761301841425,-239.78605418,0.00036734,3]
[392278552,1761301841436,-15769.30237295,0.00036734,2]
[392278553,1761301841446,-1863.46704841,0.00036734,2]
[392278554,1761301841455,-543.8414245,0.00036734,2]
[392278555,1761301841466,-1134.4968281,0.00036734,2]
[392278556,1761301841475,-2178.83218282,0.00036734,5]
[392278557,1761301841486,-408.62851779,0.00036734,2]
[392278558,1761301841495,-1504.94388959,0.00036734,2]
[392278559,1761301841505,-20572.93366995,0.00036734,2]
[392278560,1761301841514,-24743.74486505,0.00036734,2]
[392278561,1761301841523,-2475.34258008,0.00036734,2]
[392278562,1761301841533,-205.93061616,0.00036734,2]
[392278563,1761301841543,-876.45726366,0.00036734,2]
[392278564,1761301841551,-505.59527868,0.00036734,2]
[392278565,1761301841561,-5773.42644789,0.00036734,2]
[392278566,1761301841571,-287.09477558,0.00036734,2]
[392278567,1761301841581,-1130.56257031,0.00036734,2]
[392278568,1761301841590,-4649.45781158,0.00036734,2]
[392278569,1761301841601,-1050.29054362,0.00036734,2]
[392278570,1761301841611,-1716.46822014,0.00036734,2]
[392278571,1761301841620,-12814.02737037,0.00036734,2]
[392278572,1761301841629,-160.39684713,0.00036734,2]
[392278573,1761301841638,-202.52369443,0.00036734,2]
[392278574,1761301841647,-464.96506262,0.00036734,120]
[392278575,1761301841656,-754.0018488,0.00036734,2]
[392278576,1761301841665,-4266.0,0.00036734,2]
[392278577,1761301841675,-1341.01260163,0.00036734,2]
[392278578,1761301841684,-151.57536982,0.00036734,2]
[392278579,1761301841693,-184.73256924,0.00036734,2]
[392278580,1761301841708,-3355.97683585,0.00036734,2]
[392278581,1761301841717,-151.0,0.00036735,30]
[392278582,1761301841726,-151.0,0.00036735,30]
[392278583,1761301841736,-151.0,0.00036735,30]
[392278584,1761301841745,-151.0,0.00036735,30]
[392278585,1761301841755,-151.0,0.00036735,30]
[392278586,1761301841764,-333.953392,0.00036735,30]
[392278587,1761301841773,-151.0,0.00036735,30]
[392278588,1761301841783,-151.0,0.00036735,30]
[392278589,1761301841794,-151.0,0.00036735,30]
[392278590,1761301841804,-333.953392,0.00036735,30]
[392278591,1761301841813,-151.0,0.00036735,30]
[392278592,1761301841824,-333.953392,0.00036735,30]
[392278593,1761301841834,-151.0,0.00036735,30]
[392278594,1761301841843,-151.0,0.00036735,30]
[392278595,1761301841853,-333.953392,0.00036735,30]
[392278596,1761301841862,-152.002984,0.00036735,30]
[392278597,1761301841871,-151.0,0.00036735,30]
[392278598,1761301841881,-190.035517,0.00036735,30]
[392278599,1761301841890,-151.0,0.00036735,30]
[392278600,1761301841899,-190.035517,0.00036735,30]
[392278601,1761301841910,-190.035517,0.00036735,30]
[392278602,1761301841920,-190.035517,0.00036735,30]
[392278603,1761301841930,-324.417827,0.00036735,30]
[392278604,1761301841944,-324.417827,0.00036735,30]
[392278605,1761301841953,-151.0,0.00036735,30]
[392278606,1761301841962,-324.417827,0.00036735,30]
[392278607,1761301841971,-324.417827,0.00036735,30]
[392278608,1761301841980,-151.0,0.00036735,30]
[392278609,1761301841989,-151.0,0.00036735,30]
[392278610,1761301841998,-151.0,0.00036735,30]
[392278611,1761301842007,-151.0,0.00036735,30]
[392278612,1761301842016,-151.0,0.00036735,30]
[392278613,1761301842026,-151.0,0.00036735,30]
[392278614,1761301842035,-151.0,0.00036735,30]
[392278615,1761301842044,-151.0,0.00036735,30]
[392278616,1761301842054,-151.0,0.00036735,30]
[392278617,1761301842064,-151.0,0.00036735,30]
[392278618,1761301842073,-151.0,0.00036735,30]
[392278619,1761301842082,-155.523178,0.00036735,30]
[392278620,1761301842097,-501.90074818,0.0003675,5]
[392278621,1761301842106,-840.0,0.00036761,7]
[392278622,1761301842116,-651.71,0.000368,14]
[392278623,1761301842126,-600.0,0.000368,13]
[392278624,1761301842136,-498.31,0.000368,30]
[392278625,1761301842146,-20271.050087,0.00036888,3]
[392278626,1761301842155,-840.0,0.00036898,120]
[392278627,1761301842165,-900.0,0.000369,13]
[392278628,1761301842175,-150.0,0.00036962,7]
[392278629,1761301842185,-1000.0,0.00037008,2]
[392278630,1761301842195,-18121.62303274,0.00037015,2]
[392278631,1761301842204,-1073.0,0.00037028,120]
[392278632,1761301842214,-168.0,0.00037097,2]
[392278633,1761301842223,-1000.0,0.00037185,120]
[392278634,1761301842233,-1000.0,0.00037204,2]
[392278635,1761301842243,-1000.0,0.00037282,2]
[392278636,1761301842254,-1074.0,0.00037315,2]
[392278637,1761301842263,-570.9886789,0.00037328,2]
[392278638,1761301842272,-200.0,0.0003739,2]
[392278639,1761301842282,-486.37,0.0003739,2]
[392278640,1761301842291,-840.0,0.00037449,7]
[392278641,1761301842300,-2261.35225741,0.00037532,3]
[392278642,1761301842310,-1073.0,0.00037549,7]
[392278643,1761301842319,-1000.0,0.00037556,2]
[392278644,1761301842328,-1171.01824645,0.00037572,2]
[392278645,1761301842336,-1073.0,0.00037601,2]
[392278646,1761301842345,-237.6,0.00037606,2]
[392278647,1761301842356,-506.05,0.00037613,2]
[392278648,1761301842366,-151.0,0.00037711,14]
[392278649,1761301842375,-20271.050087,0.00037714,3]
[392278650,1761301842384,-2261.35225741,0.00037714,3]
[392278651,1761301842393,-18121.62303274,0.00037724,2]
[392278652,1761301842405,-498.31,0.000378,30]
[392278653,1761301842416,-1000.0,0.0003783,2]
[392278654,1761301842426,-651.71,0.000379,14]
[392278655,1761301842436,-304.999999,0.00038,120]
[392278656,1761301842446,-158.37970504,0.00038064,2]
[392278657,1761301842455,-392.52,0.00038075,2]
[392278658,1761301842465,-1000.0,0.00038104,2]
[392278659,1761301842474,-1000.0,0.00038104,2]
[392278660,1761301842483,-2261.35225741,0.00038288,3]
[392278661,1761301842493,-152.0,0.00038312,4]
[392278662,1761301842502,-1000.0,0.00038378,2]
[392278663,1761301842511,-522.491,0.000384,2]
[392278664,1761301842521,-20271.050087,0.00038423,3]
[392278666,1761301842530,-2261.35225741,0.00038423,3]
[392278668,1761301842539,-151.0,0.00038423,120]
[392278670,1761301842548,-151.0,0.00038423,120]
[392278671,1761301842558,-151.0,0.00038423,120]
[392278672,1761301842568,-151.0,0.00038423,120]
[392278673,1761301842577,-151.0,0.00038423,120]
[392278674,1761301842586,-333.953392,0.00038423,120]
[392278675,1761301842594,-151.0,0.00038423,120]
[392278676,1761301842604,-153.321221,0.00038423,120]
[392278677,1761301842613,-151.0,0.00038423,120]
[392278678,1761301842623,-333.953392,0.00038423,120]
[392278679,1761301842632,-151.0,0.00038423,120]
[392278680,1761301842641,-333.953392,0.00038423,120]
[392278681,1761301842651,-151.0,0.00038423,30]
[392278682,1761301842660,-174.044366,0.00038423,120]
[392278683,1761301842669,-333.953392,0.00038423,120]
[392278684,1761301842679,-156.41887,0.00038423,120]
[392278685,1761301842688,-190.035517,0.00038423,120]